[Event "FIN-ch Seniors 2019"]
[Site "Helsinki"]
[Date "2019.06.16"]
[Round "7.5"]
[White "Visti, Heikki"]
[Black "Sorri, Kari Juhani"]
[Result "0-1"]
[ECO "C55"]
[WhiteElo "2000"]
[BlackElo "2184"]
[Annotator "RC"]
[PlyCount "68"]
[EventDate "2019.06.10"]
[EventType "swiss"]
[EventCountry "FIN"]
[SourceTitle "playchess.com"]
[Source "ChessBase"]
[SourceQuality "1"]
[TimeControl "40/5400+30:1800+30"]

1. e4 {[%emt 0:00:00]} e5 {[%emt 0:00:00]} 2. Nf3 {[%emt 0:00:00]} Nc6 {[%emt 0:00:00]} 3. Bc4 {[%emt 0:00:13]} Nf6 {[%emt 0:00:22]} 4. d3 {[%emt 0:01:03]} Be7 {[%emt 0:00:22]} 5. O-O {[%emt 0:02:39]} O-O {[%emt 0:00:20]} 6. Nc3 {[%emt 0:00:48]} d6 {[%emt 0:00:16]} 7. h3 {[%emt 0:00:28]} Be6 {[%emt 0:00:17]} 8. Qe2 {[%emt 0:01:55]} Nd4 {[%emt 0:07:30]} 9. Nxd4 {[%emt 0:00:27]} exd4 {[%emt 0:00:10]} 10. Nd5 {[%emt 0:01:10]} Nxd5 {[%emt 0:04:14]} 11. exd5 {[%emt 0:01:49]} Bd7 {[%emt 0:00:17]} 12. Bd2 {[%emt 0:01:12]} Bf6 {[%emt 0:06:24]} 13. f4 {[%emt 0:01:08]} g6 {[%emt 0:02:33]} 14. Rae1 {[%emt 0:04:47]} Bh4 {[%emt 0:04:26]} 15. Rd1 {[%emt 0:00:32]} a5 {[%emt 0:00:40]} 16. a3 {[%emt 0:00:28]} b5 {[%emt 0:02:11]} 17. Bb3 {[%emt 0:00:46]} a4 {[%emt 0:08:32]} 18. Ba2 {[%emt 0:00:11]} c5 {[%emt 0:01:47]} 19. Qf3 {[%emt 0:01:17]} Bf6 {[%emt 0:01:15]} 20. c4 {[%emt 0:03:41]} bxc4 {[%emt 0:01:58]} 21. dxc4 {[%emt 0:00:39]} Rb8 {[%emt 0:00:32]} 22. Bc1 {[%emt 0:05:33]} Bg7 {[%emt 0:05:04]} 23. g4 {[%emt 0:02:44]} f5 {[%emt 0:01:26]} 24. g5 {[%emt 0:02:06]} Re8 {[%emt 0:02:40]} 25. Qd3 {[%emt 0:13:04]} Qe7 {[%emt 0:04:22]} 26. Rf2 {[%emt 0:05:06]} Qe4 {[%emt 0:02:42]} 27. Rc2 {[%emt 0:01:17]} Qxd3 {[%emt 0:01:53]} 28. Rxd3 {[%emt 0:00:19]} Re1+ {[%emt 0:00:56]} 29. Kg2 {[%emt 0:01:43]} Rxc1 {[%emt 0:00:40]} 30. Rxc1 {[%emt 0:47:55]} Rxb2+ {[%emt 0:41:11]} 31. Kg3 {[%emt 0:00:30]} Rxa2 {[%emt 0:00:30]} 32. Rb1 {[%emt 0:00:30]} Kf7 {[%emt 0:00:30]} 33. Rb6 {[%emt 0:00:30]} Ke7 {[%emt 0:00:30]} 34. h4 {[%emt 0:00:30]} Re2 {[%emt 0:00:30]} 0-1

[Event "FIN-ch Seniors 2019"]
[Site "Helsinki"]
[Date "2019.06.18"]
[Round "9.1"]
[White "Hurme, Harri"]
[Black "Sorri, Kari Juhani"]
[Result "1-0"]
[ECO "E90"]
[WhiteElo "2122"]
[BlackElo "2184"]
[Annotator "NA"]
[PlyCount "91"]
[EventDate "2019.06.10"]
[EventType "swiss"]
[EventCountry "FIN"]
[SourceTitle "playchess.com"]
[Source "ChessBase"]
[SourceQuality "1"]
[TimeControl "40/5400+30:1800+30"]

1. d4 {[%emt 0:00:00]} Nf6 {[%emt 0:00:00]} 2. c4 {[%emt 0:00:00]} g6 {[%emt 0:00:00]} 3. Nc3 {[%emt 0:00:00]} Bg7 {[%emt 0:00:01]} 4. e4 {[%emt 0:00:00]} d6 {[%emt 0:00:05]} 5. h3 {[%emt 0:00:07]} O-O {[%emt 0:00:12]} 6. Bg5 {[%emt 0:00:10]} Nbd7 {[%emt 0:00:54]} 7. Nf3 {[%emt 0:00:27]} e5 {[%emt 1:32:18]} 8. d5 {[%emt 0:00:54]} a6 {[%emt 0:00:00]} 9. Bd3 {[%emt 0:01:24]} Qe8 {[%emt 0:00:00]} 10. O-O {[%emt 0:14:01]} Kh8 {[%emt 0:00:00]} 11. Re1 {[%emt 0:01:47]} Ng8 {[%emt 0:00:00]} 12. Nd2 {[%emt 0:02:33]} f6 {[%emt 0:00:00]} 13. Be3 {[%emt 0:01:39]} Qf7 {[%emt 0:00:00]} 14. Rc1 {[%emt 0:02:58]} f5 {[%emt 0:00:00]} 15. exf5 {[%emt 0:01:17]} gxf5 {[%emt 0:00:00]} 16. f4 {[%emt 0:00:16]} e4 {[%emt 0:00:00]} 17. Be2 {[%emt 0:03:47]} Ngf6 {[%emt 0:00:00]} 18. Nb3 {[%emt 0:00:53]} Rg8 {[%emt 0:00:00]} 19. Nd4 {[%emt 0:02:09]} Nf8 {[%emt 0:00:00]} 20. b4 {[%emt 0:01:31]} Qg6 {[%emt 0:00:00]} 21. Bf1 {[%emt 0:10:34]} Bd7 {[%emt 0:00:00]} 22. c5 {[%emt 0:02:51]} Nh5 {[%emt 0:00:00]} 23. Nce2 {[%emt 0:01:15]} Bf6 {[%emt 0:00:00]} 24. Qd2 {[%emt 0:03:37]} Ng3 {[%emt 0:00:00]} 25. Nxg3 {[%emt 0:01:08]} Qxg3 {[%emt 0:00:00]} 26. Kh1 {[%emt 0:01:28]} Re8 {[%emt 0:00:00]} 27. cxd6 {[%emt 0:01:58]} cxd6 {[%emt 0:00:00]} 28. Rc7 {[%emt 0:00:45]} Re7 {[%emt 0:00:00]} 29. Rxb7 {[%emt 0:02:15]} Bb5 {[%emt 0:00:00]} 30. Nxf5 {[%emt 0:04:04]} Qxe1 {[%emt 0:00:00]} 31. Qxe1 {[%emt 0:00:26]} Rxb7 {[%emt 0:00:00]} 32. Bxb5 {[%emt 0:06:45]} Rxb5 {[%emt 0:00:00]} 33. Qd2 {[%emt 0:01:14]} a5 {[%emt 0:00:00]} 34. a3 {[%emt 0:00:21]} axb4 {[%emt 0:00:00]} 35. axb4 {[%emt 0:00:02]} Nd7 {[%emt 0:00:00]} 36. Nxd6 {[%emt 0:00:27]} Rbb8 {[%emt 0:00:00]} 37. Nxe4 {[%emt 0:00:42]} Bg7 {[%emt 0:00:00]} 38. Ng5 {[%emt 0:01:17]} Rge8 {[%emt 0:00:00]} 39. Bd4 {[%emt 0:01:42]} Nf6 {[%emt 0:00:00]} 40. Qd3 {[%emt 0:03:44]} Rb7 {[%emt 0:00:00]} 41. b5 {[%emt 0:31:50]} Rd8 {[%emt 0:17:38]} 42. Ne6 {[%emt 0:03:14]} Rxd5 {[%emt 0:13:02]} 43. Qc3 {[%emt 0:00:41]} Rxd4 {[%emt 0:09:08]} 44. Qc8+ {[%emt 0:03:35]} Bf8 {[%emt 0:04:21]} 45. Qxf8+ {[%emt 0:00:51]} Ng8 {[%emt 0:00:08]} 46. Nxd4 {[%emt 0:00:15]} 1-0

[Event "FIN-ch Seniors 2019"]
[Site "Helsinki"]
[Date "2019.06.18"]
[Round "9.2"]
[White "Peltola, Leo"]
[Black "Nyrhinen, Harri"]
[Result "0-1"]
[ECO "B17"]
[WhiteElo "1933"]
[BlackElo "2001"]
[Annotator "NA"]
[PlyCount "102"]
[EventDate "2019.06.10"]
[EventType "swiss"]
[EventCountry "FIN"]
[SourceTitle "playchess.com"]
[Source "ChessBase"]
[SourceQuality "1"]
[TimeControl "40/5400+30:1800+30"]

1. e4 {[%emt 0:00:00]} c6 {[%emt 0:00:00]} 2. d4 {[%emt 0:00:00]} d5 {[%emt 0:00:00]} 3. Nd2 {[%emt 0:00:00]} dxe4 {[%emt 0:00:00]} 4. Nxe4 {[%emt 0:00:02]} Nd7 {[%emt 0:00:05]} 5. Nf3 {[%emt 0:00:58]} Ngf6 {[%emt 0:00:16]} 6. Nxf6+ {[%emt 0:01:17]} Nxf6 {[%emt 0:00:03]} 7. Bc4 {[%emt 0:01:29]} e6 {[%emt 0:04:16]} 8. O-O {[%emt 0:01:58]} Bd6 {[%emt 0:03:04]} 9. Bb3 {[%emt 0:04:04]} Qc7 {[%emt 0:01:28]} 10. Qe2 {[%emt 0:03:59]} O-O {[%emt 0:08:03]} 11. Ne5 {[%emt 0:04:20]} a5 {[%emt 0:08:06]} 12. a4 {[%emt 0:05:42]} b5 {[%emt 0:12:57]} 13. Re1 {[%emt 0:03:32]} b4 {[%emt 0:06:03]} 14. h3 {[%emt 0:03:06]} c5 {[%emt 0:05:00]} 15. dxc5 {[%emt 0:02:44]} Qxc5 {[%emt 0:02:32]} 16. Ng4 {[%emt 0:05:20]} Nd5 {[%emt 0:03:34]} 17. Ne5 {[%emt 0:09:38]} Qc7 {[%emt 0:10:32]} 18. Nd3 {[%emt 0:04:05]} Bb7 {[%emt 0:02:30]} 19. Qg4 {[%emt 0:05:38]} Kh8 {[%emt 0:05:02]} 20. Bg5 {[%emt 0:07:40]} Rae8 {[%emt 0:03:03]} 21. Rad1 {[%emt 0:04:07]} Rg8 {[%emt 0:05:33]} 22. Qc4 {[%emt 0:15:33]} Qd7 {[%emt 0:02:39]} 23. Nc5 {[%emt 0:02:13]} Bxc5 {[%emt 0:03:58]} 24. Qxc5 {[%emt 0:00:11]} Qc6 {[%emt 0:03:00]} 25. Qxc6 {[%emt 0:01:20]} Bxc6 {[%emt 0:00:09]} 26. Be3 {[%emt 0:00:30]} Rc8 {[%emt 0:00:53]} 27. Rd2 {[%emt 0:00:43]} h6 {[%emt 0:03:42]} 28. Bd4 {[%emt 0:01:23]} Nf4 {[%emt 0:02:03]} 29. f3 {[%emt 0:01:14]} Rgd8 {[%emt 0:00:56]} 30. Kf2 {[%emt 0:00:51]} Rd7 {[%emt 0:01:09]} 31. Red1 {[%emt 0:02:19]} Rcd8 {[%emt 0:01:47]} 32. Be3 {[%emt 0:00:32]} Nd5 {[%emt 0:00:25]} 33. g3 {[%emt 0:03:17]} Nxe3 {[%emt 0:00:22]} 34. Kxe3 {[%emt 0:00:05]} Rxd2 {[%emt 0:00:17]} 35. Rxd2 {[%emt 0:00:13]} Rxd2 {[%emt 0:00:06]} 36. Kxd2 {[%emt 0:00:03]} Bxf3 {[%emt 0:00:04]} 37. Ke3 {[%emt 0:00:40]} Bg2 {[%emt 0:01:23]} 38. h4 {[%emt 0:00:16]} Kg8 {[%emt 0:00:30]} 39. Kd4 {[%emt 0:01:33]} g5 {[%emt 0:00:22]} 40. hxg5 {[%emt 0:01:13]} hxg5 {[%emt 0:00:04]} 41. c4 {[%emt 0:32:24]} bxc3 {[%emt 0:30:17]} 42. Kxc3 {[%emt 0:01:31]} Kf8 {[%emt 0:00:00]} 43. Bc4 {[%emt 0:00:00]} Ke7 {[%emt 0:00:00]} 44. b4 {[%emt 0:00:00]} axb4+ {[%emt 0:00:00]} 45. Kxb4 {[%emt 0:00:00]} Kd6 {[%emt 0:00:00]} 46. Be2 {[%emt 0:00:00]} e5 {[%emt 0:00:00]} 47. Kc4 {[%emt 0:00:00]} f5 {[%emt 0:00:00]} 48. a5 {[%emt 0:00:00]} f4 {[%emt 0:00:00]} 49. gxf4 {[%emt 0:00:00]} gxf4 {[%emt 0:00:00]} 50. Bg4 {[%emt 0:00:00]} f3 {[%emt 0:00:00]} 51. Kd3 {[%emt 0:00:00]} f2 {[%emt 0:00:00]} 0-1

[Event "FIN-ch Seniors 2019"]
[Site "Helsinki"]
[Date "2019.06.18"]
[Round "9.3"]
[White "Kivipelto, Kaj"]
[Black "Patola, Eero"]
[Result "1-0"]
[ECO "A10"]
[WhiteElo "2130"]
[BlackElo "1853"]
[Annotator "NA"]
[PlyCount "63"]
[EventDate "2019.06.10"]
[EventType "swiss"]
[EventCountry "FIN"]
[SourceTitle "playchess.com"]
[Source "ChessBase"]
[SourceQuality "1"]
[TimeControl "40/5400+30:1800+30"]

1. Nf3 {[%emt 0:00:49]} f5 {[%emt 0:00:25]} 2. c4 {[%emt 0:00:55]} Nf6 {[%emt 0:00:10]} 3. Nc3 {[%emt 0:00:20]} d6 {[%emt 0:03:52]} 4. g3 {[%emt 0:05:08]} g6 {[%emt 0:07:33]} 5. Bg2 {[%emt 0:00:12]} Bg7 {[%emt 0:00:13]} 6. O-O {[%emt 0:00:30]} O-O {[%emt 0:00:27]} 7. d3 {[%emt 0:00:31]} c6 {[%emt 0:01:32]} 8. Bd2 {[%emt 0:00:43]} Na6 {[%emt 0:08:13]} 9. Rb1 {[%emt 0:00:58]} Nc7 {[%emt 0:00:32]} 10. b4 {[%emt 0:00:28]} Bd7 {[%emt 0:02:50]} 11. a4 {[%emt 0:31:28]} a6 {[%emt 0:05:26]} 12. e4 {[%emt 0:09:30]} e5 {[%emt 0:03:00]} 13. c5 {[%emt 0:00:56]} Nfe8 {[%emt 0:08:14]} 14. Bg5 {[%emt 0:05:04]} Bf6 {[%emt 0:02:39]} 15. cxd6 {[%emt 0:02:29]} Ne6 {[%emt 0:01:55]} 16. Bxf6 {[%emt 0:06:52]} Qxf6 {[%emt 0:00:58]} 17. Qb3 {[%emt 0:07:08]} Nxd6 {[%emt 0:03:00]} 18. d4 {[%emt 0:01:16]} Nf7 {[%emt 0:01:29]} 19. dxe5 {[%emt 0:02:30]} Nxe5 {[%emt 0:01:11]} 20. Nxe5 {[%emt 0:00:52]} Qxe5 {[%emt 0:00:32]} 21. exf5 {[%emt 0:00:46]} Qxf5 {[%emt 0:02:11]} 22. Ne4 {[%emt 0:02:51]} Kg7 {[%emt 0:02:31]} 23. Rbd1 {[%emt 0:00:32]} Nc7 {[%emt 0:04:53]} 24. Qc3+ {[%emt 0:01:27]} Kg8 {[%emt 0:01:43]} 25. Nd6 {[%emt 0:00:56]} Qf6 {[%emt 0:02:47]} 26. Qxf6 {[%emt 0:00:56]} Rxf6 {[%emt 0:00:07]} 27. Ne4 {[%emt 0:00:12]} Rf7 {[%emt 0:07:45]} 28. Rxd7 {[%emt 0:00:27]} Nd5 {[%emt 0:00:36]} 29. Rxf7 {[%emt 0:00:36]} Kxf7 {[%emt 0:00:08]} 30. b5 {[%emt 0:05:50]} axb5 {[%emt 0:03:06]} 31. axb5 {[%emt 0:00:02]} Rb8 {[%emt 0:02:13]} 32. Ng5+ {[%emt 0:01:08]} 1-0

[Event "FIN-ch Seniors 2019"]
[Site "Helsinki"]
[Date "2019.06.18"]
[Round "9.4"]
[White "Aakio, Seppo"]
[Black "Gronroos, Matti"]
[Result "1/2-1/2"]
[ECO "C45"]
[WhiteElo "2051"]
[BlackElo "1931"]
[Annotator "NA"]
[PlyCount "101"]
[EventDate "2019.06.10"]
[EventType "swiss"]
[EventCountry "FIN"]
[SourceTitle "playchess.com"]
[Source "ChessBase"]
[SourceQuality "1"]
[TimeControl "40/5400+30:1800+30"]

1. e4 {[%emt 1:30:30]} e5 {[%emt 1:30:30]} 2. Nf3 {[%emt 0:00:30]} Nc6 {[%emt 0:00:30]} 3. d4 {[%emt 0:00:30]} exd4 {[%emt 0:00:30]} 4. Nxd4 {[%emt 0:00:30]} Nge7 {[%emt 0:00:30]} 5. Nc3 {[%emt 0:00:30]} Nxd4 {[%emt 0:00:30]} 6. Qxd4 {[%emt 0:00:30]} Nc6 {[%emt 0:00:30]} 7. Qa4 {[%emt 0:00:30]} Bc5 {[%emt 0:00:30]} 8. Nd5 {[%emt 0:00:30]} O-O {[%emt 0:00:30]} 9. Be3 {[%emt 0:00:30]} Bxe3 {[%emt 0:00:30]} 10. Nxe3 {[%emt 0:00:30]} d6 {[%emt 0:00:30]} 11. c3 {[%emt 0:00:30]} Be6 {[%emt 0:00:30]} 12. Be2 {[%emt 0:00:30]} Qd7 {[%emt 0:00:30]} 13. O-O {[%emt 0:00:30]} Ne7 {[%emt 0:00:30]} 14. Bb5 {[%emt 0:00:30]} Qc8 {[%emt 0:00:30]} 15. Bd3 {[%emt 0:00:30]} f5 {[%emt 0:00:30]} 16. f3 {[%emt 0:00:30]} f4 {[%emt 0:00:30]} 17. Nd1 {[%emt 0:00:30]} Ng6 {[%emt 0:00:30]} 18. Nf2 {[%emt 0:00:30]} Ne5 {[%emt 0:00:30]} 19. Rfd1 {[%emt 0:00:30]} Qd8 {[%emt 0:00:30]} 20. Qc2 {[%emt 0:00:30]} Qg5 {[%emt 0:00:30]} 21. Kf1 {[%emt 0:00:30]} Rf6 {[%emt 0:00:30]} 22. h3 {[%emt 0:00:30]} Rg6 {[%emt 0:00:30]} 23. Ng4 {[%emt 0:00:30]} Nxd3 {[%emt 0:00:30]} 24. Rxd3 {[%emt 0:00:30]} Bc4 {[%emt 0:00:30]} 25. Rad1 {[%emt 0:00:30]} h5 {[%emt 0:00:30]} 26. Nh2 {[%emt 0:00:30]} Qg3 {[%emt 0:00:30]} 27. Kg1 {[%emt 0:00:30]} Bxd3 {[%emt 0:00:30]} 28. Rxd3 {[%emt 0:00:30]} Re8 {[%emt 0:00:30]} 29. Rd2 {[%emt 0:00:30]} Ree6 {[%emt 0:00:30]} 30. Qb3 {[%emt 0:00:30]} Kh7 {[%emt 0:00:30]} 31. Qxb7 {[%emt 0:00:30]} Rg5 {[%emt 0:00:30]} 32. Qxa7 {[%emt 0:00:30]} Reg6 {[%emt 0:00:30]} 33. Qf2 {[%emt 0:00:30]} Qxh3 {[%emt 0:00:30]} 34. Qf1 {[%emt 0:00:30]} Qe6 {[%emt 0:00:30]} 35. a3 {[%emt 0:00:30]} Qb3 {[%emt 0:00:30]} 36. Kh1 {[%emt 0:00:30]} Qb6 {[%emt 0:00:30]} 37. Qe1 {[%emt 0:00:30]} Rg3 {[%emt 0:00:30]} 38. Nf1 {[%emt 0:00:30]} h4 {[%emt 0:00:30]} 39. e5 {[%emt 0:00:30]} Re6 {[%emt 0:00:30]} 40. Qe4+ {[%emt 0:00:30]} Reg6 {[%emt 0:00:30]} 41. e6 {[%emt 0:30:30]} Qb5 {[%emt 0:30:30]} 42. Re2 {[%emt 0:00:30]} Rxg2 {[%emt 0:00:30]} 43. c4 {[%emt 0:00:30]} Qg5 {[%emt 0:00:30]} 44. Qxg6+ {[%emt 0:00:30]} Qxg6 {[%emt 0:00:30]} 45. Rxg2 {[%emt 0:00:30]} Qxe6 {[%emt 0:00:30]} 46. Nd2 {[%emt 0:00:30]} Qe3 {[%emt 0:00:30]} 47. Kh2 {[%emt 0:00:30]} Kh6 {[%emt 0:00:30]} 48. a4 {[%emt 0:00:30]} Qc5 {[%emt 0:00:30]} 49. b3 {[%emt 0:00:30]} g6 {[%emt 0:00:30]} 50. Re2 {[%emt 0:00:30]} Qe3 {[%emt 0:00:30]} 51. Rg2 {[%emt 0:00:30]} 1/2-1/2

[Event "FIN-ch Seniors 2019"]
[Site "Helsinki"]
[Date "2019.06.18"]
[Round "9.5"]
[White "Auvinen, Esa"]
[Black "Kangas, Mauno"]
[Result "1/2-1/2"]
[ECO "B08"]
[WhiteElo "1899"]
[BlackElo "1831"]
[Annotator "NA"]
[PlyCount "40"]
[EventDate "2019.06.10"]
[EventType "swiss"]
[EventCountry "FIN"]
[SourceTitle "playchess.com"]
[Source "ChessBase"]
[SourceQuality "1"]
[TimeControl "40/5400+30:1800+30"]

1. e4 {[%emt 0:00:31]} d6 {[%emt 0:00:00]} 2. d4 {[%emt 0:00:26]} Nf6 {[%emt 0:00:01]} 3. Nc3 {[%emt 0:00:05]} g6 {[%emt 0:00:08]} 4. Nf3 {[%emt 0:00:33]} Bg7 {[%emt 0:00:09]} 5. Bc4 {[%emt 0:00:33]} c6 {[%emt 0:00:30]} 6. a4 {[%emt 0:00:20]} Bg4 {[%emt 0:00:44]} 7. h3 {[%emt 0:01:58]} Bd7 {[%emt 0:02:04]} 8. O-O {[%emt 0:01:36]} O-O {[%emt 0:00:08]} 9. Re1 {[%emt 0:00:12]} Na6 {[%emt 0:02:39]} 10. e5 {[%emt 0:03:35]} Ne8 {[%emt 0:07:41]} 11. e6 {[%emt 0:10:47]} Bxe6 {[%emt 0:00:55]} 12. Bxe6 {[%emt 0:00:43]} fxe6 {[%emt 0:00:03]} 13. Ng5 {[%emt 0:03:03]} Nac7 {[%emt 0:03:38]} 14. Nxe6 {[%emt 0:00:07]} Nxe6 {[%emt 0:00:02]} 15. Rxe6 {[%emt 0:00:09]} Nc7 {[%emt 0:01:49]} 16. Re2 {[%emt 0:01:06]} e5 {[%emt 0:02:40]} 17. dxe5 {[%emt 0:00:38]} Bxe5 {[%emt 0:00:44]} 18. Ne4 {[%emt 0:01:19]} Ne6 {[%emt 0:03:13]} 19. c3 {[%emt 0:01:37]} Qc7 {[%emt 0:17:22]} 20. Bh6 {[%emt 0:04:19]} Rf5 {[%emt 0:55:30]} 1/2-1/2

[Event "FIN-ch Seniors 2019"]
[Site "Helsinki"]
[Date "2019.06.18"]
[Round "9.6"]
[White "Leukkunen, Raimo"]
[Black "Sihvonen, Tero"]
[Result "0-1"]
[ECO "A04"]
[WhiteElo "1876"]
[BlackElo "1983"]
[Annotator "NA"]
[PlyCount "68"]
[EventDate "2019.06.10"]
[EventType "swiss"]
[EventCountry "FIN"]
[SourceTitle "playchess.com"]
[Source "ChessBase"]
[SourceQuality "1"]
[TimeControl "40/5400+30:1800+30"]

1. g3 {[%emt 1:30:30]} c5 {[%emt 1:30:30]} 2. Nf3 {[%emt 0:00:30]} Nc6 {[%emt 0:00:30]} 3. d3 {[%emt 0:00:30]} g6 {[%emt 0:00:30]} 4. Bg2 {[%emt 0:00:30]} Bg7 {[%emt 0:00:30]} 5. e4 {[%emt 0:00:30]} d6 {[%emt 0:00:30]} 6. O-O {[%emt 0:00:30]} Nf6 {[%emt 0:00:30]} 7. c3 {[%emt 0:00:30]} h6 {[%emt 0:00:30]} 8. Re1 {[%emt 0:00:30]} O-O {[%emt 0:00:30]} 9. d4 {[%emt 0:00:30]} e5 {[%emt 0:00:30]} 10. d5 {[%emt 0:00:30]} Ne7 {[%emt 0:00:30]} 11. Nbd2 {[%emt 0:00:30]} Bg4 {[%emt 0:00:30]} 12. h3 {[%emt 0:00:30]} Bd7 {[%emt 0:00:30]} 13. Nf1 {[%emt 0:00:30]} Qc8 {[%emt 0:00:30]} 14. Kh2 {[%emt 0:00:30]} c4 {[%emt 0:00:30]} 15. Ng1 {[%emt 0:00:30]} Nh7 {[%emt 0:00:30]} 16. f4 {[%emt 0:00:30]} f5 {[%emt 0:00:30]} 17. Qc2 {[%emt 0:00:30]} Qe8 {[%emt 0:00:30]} 18. b3 {[%emt 0:00:30]} Rc8 {[%emt 0:00:30]} 19. b4 {[%emt 0:00:30]} Qf7 {[%emt 0:00:30]} 20. Rd1 {[%emt 0:00:30]} fxe4 {[%emt 0:00:30]} 21. Bxe4 {[%emt 0:00:30]} Nf6 {[%emt 0:00:30]} 22. fxe5 {[%emt 0:00:30]} Nxe4 {[%emt 0:00:30]} 23. Qxe4 {[%emt 0:00:30]} Qf2+ {[%emt 0:00:30]} 24. Qg2 {[%emt 0:00:30]} Qxg2+ {[%emt 0:00:30]} 25. Kxg2 {[%emt 0:00:30]} dxe5 {[%emt 0:00:30]} 26. Ne3 {[%emt 0:00:30]} Nf5 {[%emt 0:00:30]} 27. g4 {[%emt 0:00:30]} Nh4+ {[%emt 0:00:30]} 28. Kh1 {[%emt 0:00:30]} e4 {[%emt 0:00:30]} 29. Ng2 {[%emt 0:00:30]} Nf3 {[%emt 0:00:30]} 30. Bb2 {[%emt 0:00:30]} Ne5 {[%emt 0:00:30]} 31. Ne1 {[%emt 0:00:30]} Nd3 {[%emt 0:00:30]} 32. Nxd3 {[%emt 0:00:30]} cxd3 {[%emt 0:00:30]} 33. Rac1 {[%emt 0:00:30]} Rf2 {[%emt 0:00:30]} 34. Ba1 {[%emt 0:00:30]} Be5 {[%emt 0:00:30]} 0-1

[Event "FIN-ch Seniors 2019"]
[Site "Helsinki"]
[Date "2019.06.18"]
[Round "9.7"]
[White "Koskinen, Veikko"]
[Black "Lyly, Seppo"]
[Result "1-0"]
[ECO "A03"]
[WhiteElo "1866"]
[BlackElo "1907"]
[Annotator "NA"]
[PlyCount "77"]
[EventDate "2019.06.10"]
[EventType "swiss"]
[EventCountry "FIN"]
[SourceTitle "playchess.com"]
[Source "ChessBase"]
[SourceQuality "1"]
[TimeControl "40/5400+30:1800+30"]

1. f4 {[%emt 0:02:24]} Nf6 {[%emt 1:30:30]} 2. Nf3 {[%emt 0:00:17]} g6 {[%emt 0:00:00]} 3. g3 {[%emt 0:00:35]} Bg7 {[%emt 0:00:00]} 4. Bg2 {[%emt 0:00:06]} O-O {[%emt 0:00:00]} 5. O-O {[%emt 0:00:11]} c5 {[%emt 0:00:00]} 6. d3 {[%emt 0:01:20]} d5 {[%emt 0:00:00]} 7. c3 {[%emt 0:00:36]} Nc6 {[%emt 0:00:00]} 8. Na3 {[%emt 0:01:00]} Rb8 {[%emt 0:00:00]} 9. Qc2 {[%emt 0:04:44]} b5 {[%emt 0:00:00]} 10. e4 {[%emt 0:05:07]} e6 {[%emt 0:00:00]} 11. e5 {[%emt 0:18:38]} Ne8 {[%emt 0:05:00]} 12. Qf2 {[%emt 0:00:56]} b4 {[%emt 0:00:00]} 13. Nb1 {[%emt 0:06:18]} d4 {[%emt 0:00:00]} 14. Ng5 {[%emt 0:03:17]} Bb7 {[%emt 0:00:00]} 15. Ne4 {[%emt 0:02:34]} Qb6 {[%emt 0:00:00]} 16. Nbd2 {[%emt 0:05:14]} Ba6 {[%emt 0:00:00]} 17. c4 {[%emt 0:01:48]} f5 {[%emt 0:00:00]} 18. exf6 {[%emt 0:03:00]} Nxf6 {[%emt 0:00:00]} 19. Nxf6+ {[%emt 0:00:40]} Bxf6 {[%emt 0:00:00]} 20. Qe2 {[%emt 0:02:09]} Rbe8 {[%emt 0:00:00]} 21. Bh3 {[%emt 0:03:21]} Nd8 {[%emt 0:00:00]} 22. Ne4 {[%emt 0:01:35]} Bg7 {[%emt 0:00:00]} 23. g4 {[%emt 0:01:17]} Bb7 {[%emt 0:00:00]} 24. Bd2 {[%emt 0:01:39]} Bxe4 {[%emt 0:00:00]} 25. Qxe4 {[%emt 0:02:02]} Qc6 {[%emt 0:00:00]} 26. Bg2 {[%emt 0:01:22]} Qxe4 {[%emt 0:00:00]} 27. Bxe4 {[%emt 0:00:19]} Nf7 {[%emt 0:00:00]} 28. Rae1 {[%emt 0:00:55]} Nd6 {[%emt 0:00:00]} 29. Bc6 {[%emt 0:02:44]} Re7 {[%emt 0:00:00]} 30. h4 {[%emt 0:05:30]} Rc8 {[%emt 0:00:00]} 31. Bg2 {[%emt 0:00:34]} Rf8 {[%emt 0:00:00]} 32. Re2 {[%emt 0:03:30]} Kh8 {[%emt 0:00:00]} 33. Rfe1 {[%emt 0:06:00]} Rfe8 {[%emt 0:04:37]} 34. Bc6 {[%emt 0:00:56]} Rc8 {[%emt 0:00:52]} 35. Bd5 {[%emt 0:00:11]} e5 {[%emt 0:01:43]} 36. fxe5 {[%emt 0:01:13]} Rce8 {[%emt 0:00:34]} 37. Bf4 {[%emt 0:00:28]} Nf7 {[%emt 0:00:55]} 38. e6 {[%emt 0:02:36]} Nd8 {[%emt 0:00:50]} 39. Bd6 {[%emt 0:00:27]} 1-0

[Event "FIN-ch Seniors 2019"]
[Site "Helsinki"]
[Date "2019.06.18"]
[Round "9.8"]
[White "Saharinen, Petri"]
[Black "Terasalo, Kari"]
[Result "1-0"]
[ECO "D06"]
[WhiteElo "1719"]
[BlackElo "1780"]
[Annotator "NA"]
[PlyCount "63"]
[EventDate "2019.06.10"]
[EventType "swiss"]
[EventCountry "FIN"]
[SourceTitle "playchess.com"]
[Source "ChessBase"]
[SourceQuality "1"]
[TimeControl "40/5400+30:1800+30"]

1. d4 {[%emt 0:00:00]} Nf6 {[%emt 0:00:41]} 2. c4 {[%emt 0:00:00]} e6 {[%emt 0:00:05]} 3. Nc3 {[%emt 0:00:00]} d5 {[%emt 0:00:26]} 4. cxd5 {[%emt 0:00:08]} Nxd5 {[%emt 0:00:35]} 5. e4 {[%emt 0:00:16]} Nb6 {[%emt 0:00:38]} 6. Nf3 {[%emt 0:00:15]} Be7 {[%emt 0:01:11]} 7. Bb5+ {[%emt 0:00:35]} c6 {[%emt 0:00:14]} 8. Bd3 {[%emt 0:00:42]} O-O {[%emt 0:01:04]} 9. O-O {[%emt 0:00:08]} N8d7 {[%emt 0:01:18]} 10. e5 {[%emt 0:00:15]} Nd5 {[%emt 0:07:52]} 11. Nxd5 {[%emt 0:00:20]} cxd5 {[%emt 0:00:14]} 12. Qc2 {[%emt 0:00:17]} h6 {[%emt 0:00:38]} 13. Bd2 {[%emt 0:02:55]} f6 {[%emt 0:04:45]} 14. Bh7+ {[%emt 0:02:26]} Kh8 {[%emt 0:01:31]} 15. Nh4 {[%emt 0:00:24]} f5 {[%emt 0:00:36]} 16. Bxf5 {[%emt 0:02:13]} Bxh4 {[%emt 0:03:53]} 17. Bg6 {[%emt 0:02:22]} Nb6 {[%emt 0:02:12]} 18. b3 {[%emt 0:00:40]} Bd7 {[%emt 0:00:12]} 19. Qd3 {[%emt 0:00:34]} Be8 {[%emt 0:01:55]} 20. g3 {[%emt 0:01:13]} Be7 {[%emt 0:02:06]} 21. Rac1 {[%emt 0:11:24]} Bg5 {[%emt 0:05:52]} 22. f4 {[%emt 0:00:15]} Be7 {[%emt 0:00:33]} 23. h4 {[%emt 0:00:38]} Bf7 {[%emt 0:03:10]} 24. f5 {[%emt 0:00:47]} Bxg6 {[%emt 0:04:50]} 25. fxg6 {[%emt 0:00:16]} Qd7 {[%emt 0:04:32]} 26. Rf7 {[%emt 0:04:15]} Rxf7 {[%emt 0:00:53]} 27. gxf7 {[%emt 0:00:09]} Bxh4 {[%emt 0:15:42]} 28. Qg6 {[%emt 0:01:35]} Rf8 {[%emt 0:09:16]} 29. Rf1 {[%emt 0:00:29]} Qe7 {[%emt 0:05:50]} 30. Bxh6 {[%emt 0:00:19]} Rg8 {[%emt 0:01:38]} 31. Bxg7+ {[%emt 0:01:46]} Rxg7 {[%emt 0:00:29]} 32. Qh6+ {[%emt 0:00:07]} 1-0